[Event "2nd Serbian League-Vojvodina 2023"]
[Site "Novi Sad"]
[Date "2023.11.04"]
[Round "3.3"]
[White "Ljepic, Andrej"]
[Black "Popovic, Zoran"]
[Result "1-0"]
[ECO "B12"]
[WhiteElo "2236"]
[BlackElo "2210"]
[Annotator "RC"]
[PlyCount "99"]
[EventDate "2023.10.22"]
[EventType "team-tourn"]
[EventCountry "SRB"]
[SourceTitle "playchess.com"]
[Source "ChessBase"]
[SourceQuality "1"]
[TimeControl "40/5400+30:1800+30"]

1. e4 {[%emt 0:00:06]} c6 {[%emt 0:00:06]} 2. d4 {[%emt 0:00:19]} d5 {[%emt 0:00:07]} 3. e5 {[%emt 0:00:08]} Bf5 {[%emt 0:00:16]} 4. h4 {[%emt 0:00:07]} h5 {[%emt 0:00:42]} 5. c4 {[%emt 0:00:16]} e6 {[%emt 0:00:28]} 6. Nc3 {[%emt 0:00:05]} Ne7 {[%emt 0:01:12]} 7. Bg5 {[%emt 0:00:15]} Qb6 {[%emt 0:12:05]} 8. Qd2 {[%emt 0:00:19]} dxc4 {[%emt 0:00:33]} 9. Bxc4 {[%emt 0:00:48]} Nd7 {[%emt 0:00:19]} 10. Nge2 {[%emt 0:04:30]} Nd5 {[%emt 0:09:41]} 11. O-O {[%emt 0:01:58]} f6 {[%emt 0:04:15]} 12. exf6 {[%emt 0:03:57]} gxf6 {[%emt 0:00:14]} 13. Be3 {[%emt 0:04:46]} O-O-O {[%emt 0:06:17]} 14. Bd3 {[%emt 0:07:52]} Bxd3 {[%emt 0:13:34]} 15. Qxd3 {[%emt 0:00:11]} Bd6 {[%emt 0:01:11]} 16. Nxd5 {[%emt 0:05:10]} cxd5 {[%emt 0:01:24]} 17. Rac1+ {[%emt 0:00:22]} Kb8 {[%emt 0:00:43]} 18. Nf4 {[%emt 0:00:29]} Rde8 {[%emt 0:06:45]} 19. Qg6 {[%emt 0:04:16]} Qd8 {[%emt 0:14:14]} 20. Rc2 {[%emt 0:04:18]} Qe7 {[%emt 0:02:07]} 21. Qd3 {[%emt 0:03:45]} Reg8 {[%emt 0:01:20]} 22. Rfc1 {[%emt 0:04:09]} f5 {[%emt 0:04:35]} 23. g3 {[%emt 0:02:40]} Nf6 {[%emt 0:02:19]} 24. Ng2 {[%emt 0:02:17]} Ne4 {[%emt 0:02:12]} 25. Bf4 {[%emt 0:00:16]} Rg4 {[%emt 0:02:07]} 26. Rc7 {[%emt 0:04:59]} Bxc7 {[%emt 0:08:10]} 27. Rxc7 {[%emt 0:00:05]} Qxc7 {[%emt 0:00:10]} 28. Bxc7+ {[%emt 0:00:05]} Kxc7 {[%emt 0:00:04]} 29. Nf4 {[%emt 0:00:32]} Re8 {[%emt 0:01:52]} 30. Nxh5 {[%emt 0:01:55]} Rg6 {[%emt 0:00:46]} 31. Nf4 {[%emt 0:00:22]} Rg7 {[%emt 0:00:20]} 32. Qb5 {[%emt 0:00:58]} Nd6 {[%emt 0:01:14]} 33. Qc5+ {[%emt 0:00:45]} Kd7 {[%emt 0:00:11]} 34. Qxa7 {[%emt 0:00:19]} Rc8 {[%emt 0:00:20]} 35. Nd3 {[%emt 0:03:08]} Ke7 {[%emt 0:01:54]} 36. Kg2 {[%emt 0:00:55]} Rc2 {[%emt 0:00:29]} 37. Kf3 {[%emt 0:03:52]} Kf6 {[%emt 0:01:17]} 38. Qb8 {[%emt 0:00:18]} Ke7 {[%emt 0:01:08]} 39. Nc5 {[%emt 0:01:19]} Ne4 {[%emt 0:00:30]} 40. Qc7+ {[%emt 0:00:12]} Kf6 {[%emt 0:01:43]} 41. Nd7+ {[%emt 0:30:20]} Rxd7 {[%emt 0:30:08]} 42. Qxc2 {[%emt 0:00:10]} e5 {[%emt 0:00:20]} 43. Qc8 {[%emt 0:01:05]} Ke7 {[%emt 0:01:11]} 44. Ke3 {[%emt 0:01:34]} exd4+ {[%emt 0:00:20]} 45. Kxd4 {[%emt 0:00:06]} Nxf2 {[%emt 0:00:41]} 46. h5 {[%emt 0:00:30]} Ng4 {[%emt 0:00:39]} 47. a4 {[%emt 0:01:51]} Nf6 {[%emt 0:00:32]} 48. h6 {[%emt 0:00:11]} Ke6 {[%emt 0:00:10]} 49. b4 {[%emt 0:00:25]} Kd6 {[%emt 0:00:30]} 50. Qb8+ {[%emt 0:00:25]} 1-0

[Event "2nd Serbian League-Vojvodina 2023"]
[Site "Novi Sad"]
[Date "2023.11.04"]
[Round "3.4"]
[White "Telecki, Ivan"]
[Black "Dimitrijevic, Nenad"]
[Result "0-1"]
[ECO "B22"]
[WhiteElo "2260"]
[BlackElo "2196"]
[Annotator "RC"]
[PlyCount "76"]
[EventDate "2023.10.22"]
[EventType "team-tourn"]
[EventCountry "SRB"]
[SourceTitle "playchess.com"]
[Source "ChessBase"]
[SourceQuality "1"]
[TimeControl "40/5400+30:1800+30"]

1. e4 {[%emt 0:00:30]} c5 {[%emt 0:02:27]} 2. c3 {[%emt 0:00:10]} d5 {[%emt 0:00:48]} 3. exd5 {[%emt 0:00:16]} Qxd5 {[%emt 0:00:24]} 4. d4 {[%emt 0:00:31]} Nf6 {[%emt 0:00:17]} 5. Nf3 {[%emt 0:00:19]} Bg4 {[%emt 0:01:03]} 6. Be2 {[%emt 0:00:15]} e6 {[%emt 0:00:45]} 7. O-O {[%emt 0:01:24]} Be7 {[%emt 0:02:30]} 8. h3 {[%emt 0:04:29]} Bh5 {[%emt 0:00:18]} 9. c4 {[%emt 0:04:47]} Qd8 {[%emt 0:01:04]} 10. Qa4+ {[%emt 0:16:00]} Qd7 {[%emt 0:03:57]} 11. Qb3 {[%emt 0:01:59]} Nc6 {[%emt 0:05:00]} 12. d5 {[%emt 0:17:25]} exd5 {[%emt 0:04:23]} 13. cxd5 {[%emt 0:14:44]} Bxf3 {[%emt 0:01:44]} 14. Bxf3 {[%emt 0:03:10]} Nd4 {[%emt 0:00:20]} 15. Qd3 {[%emt 0:02:41]} Nxf3+ {[%emt 0:01:25]} 16. Qxf3 {[%emt 0:00:11]} Qxd5 {[%emt 0:01:28]} 17. Qe2 {[%emt 0:01:12]} Qe6 {[%emt 0:02:09]} 18. Qb5+ {[%emt 0:01:52]} Qd7 {[%emt 0:00:22]} 19. Nc3 {[%emt 0:03:00]} Qxb5 {[%emt 0:02:34]} 20. Nxb5 {[%emt 0:00:06]} Kd7 {[%emt 0:07:25]} 21. Bf4 {[%emt 0:03:02]} Kc6 {[%emt 0:08:40]} 22. Rfe1 {[%emt 0:02:05]} Nd5 {[%emt 0:04:34]} 23. Nc7 {[%emt 0:08:59]} Nxf4 {[%emt 0:02:56]} 24. Rxe7 {[%emt 0:00:06]} Rac8 {[%emt 0:00:26]} 25. Rxf7 {[%emt 0:04:06]} Nxh3+ {[%emt 0:00:15]} 26. gxh3 {[%emt 0:00:18]} Rxc7 {[%emt 0:00:05]} 27. Rf5 {[%emt 0:01:21]} Rd8 {[%emt 0:00:59]} 28. Rc1 {[%emt 0:00:29]} Rd5 {[%emt 0:00:14]} 29. Rxd5 {[%emt 0:01:13]} Kxd5 {[%emt 0:00:07]} 30. Kg2 {[%emt 0:01:04]} b5 {[%emt 0:00:13]} 31. Kf3 {[%emt 0:00:16]} c4 {[%emt 0:00:30]} 32. Ke3 {[%emt 0:01:36]} Re7+ {[%emt 0:00:29]} 33. Kd2 {[%emt 0:00:41]} Re4 {[%emt 0:01:03]} 34. Rg1 {[%emt 0:00:34]} g6 {[%emt 0:00:12]} 35. Kc3 {[%emt 0:01:21]} Rf4 {[%emt 0:02:21]} 36. Rd1+ {[%emt 0:01:56]} Kc5 {[%emt 0:00:18]} 37. Rd2 {[%emt 0:01:21]} Rf3+ {[%emt 0:00:55]} 38. Kc2 {[%emt 0:00:01]} Rxh3 {[%emt 0:00:22]} 0-1

[Event "2nd Serbian League-Vojvodina 2023"]
[Site "Novi Sad"]
[Date "2023.11.04"]
[Round "3.5"]
[White "Sokic, Dragomir"]
[Black "Varga, Robert"]
[Result "0-1"]
[ECO "B10"]
[WhiteElo "2095"]
[BlackElo "2043"]
[Annotator "NA RC"]
[PlyCount "90"]
[EventDate "2023.10.22"]
[EventType "team-tourn"]
[EventCountry "SRB"]
[SourceTitle "playchess.com"]
[Source "ChessBase"]
[SourceQuality "1"]
[TimeControl "40/5400+30:1800+30"]

1. e4 {[%emt 0:00:02]} c6 {[%emt 0:00:34]} 2. d3 {[%emt 0:00:14]} d5 {[%emt 0:00:55]} 3. Nd2 {[%emt 0:00:01]} g6 {[%emt 0:02:10]} 4. Ngf3 {[%emt 0:00:06]} Bg7 {[%emt 0:00:16]} 5. g3 {[%emt 1:32:37]} e5 {[%emt 0:02:22]} 6. Bg2 {[%emt 0:00:00]} Ne7 {[%emt 0:01:24]} 7. Qe2 {[%emt 0:00:00]} d4 {[%emt 0:02:59]} 8. Nc4 {[%emt 0:00:00]} Qc7 {[%emt 0:00:49]} 9. Bd2 {[%emt 0:00:00]} Nd7 {[%emt 0:04:52]} 10. h4 {[%emt 0:00:00]} h5 {[%emt 1:19:09]} 11. a4 {[%emt 0:00:00]} a5 {[%emt 0:00:00]} 12. Bh3 {[%emt 0:00:00]} f6 {[%emt 0:00:00]} 13. g4 {[%emt 0:04:00]} hxg4 {[%emt 0:00:00]} 14. Bxg4 {[%emt 0:00:00]} Nf8 {[%emt 0:00:00]} 15. Bxc8 {[%emt 0:00:00]} Nxc8 {[%emt 0:00:00]} 16. Ng1 {[%emt 0:00:00]} Rh5 {[%emt 0:00:00]} 17. Qg4 {[%emt 0:00:00]} Nd6 {[%emt 0:00:00]} 18. b3 {[%emt 0:00:00]} Nxc4 {[%emt 0:00:00]} 19. bxc4 {[%emt 0:00:00]} Qd7 {[%emt 0:00:00]} 20. Qg2 {[%emt 0:00:00]} Bh6 {[%emt 0:00:00]} 21. Ne2 {[%emt 0:00:00]} Bxd2+ {[%emt 0:00:00]} 22. Kxd2 {[%emt 0:00:00]} Qh7 {[%emt 0:00:00]} 23. Rab1 {[%emt 0:00:00]} Qh6+ {[%emt 0:00:00]} 24. Kd1 {[%emt 0:00:00]} O-O-O {[%emt 0:00:00]} 25. Qg4+ {[%emt 0:00:00]} f5 {[%emt 0:00:00]} 26. Qh3 {[%emt 0:00:00]} g5 {[%emt 0:00:00]} 27. Qxf5+ {[%emt 0:00:00]} Nd7 {[%emt 0:00:00]} 28. Ng3 {[%emt 0:00:00]} Rxh4 {[%emt 0:00:00]} 29. Rxh4 {[%emt 0:00:00]} gxh4 {[%emt 0:00:00]} 30. Qh3 {[%emt 0:00:00]} Qg5 {[%emt 0:00:00]} 31. Ne2 {[%emt 0:00:00]} Kc7 {[%emt 0:00:00]} 32. Qh2 {[%emt 0:00:00]} Rf8 {[%emt 0:00:00]} 33. Nxd4 {[%emt 0:00:00]} Nc5 {[%emt 0:00:19]} 34. Nf5 {[%emt 0:00:00]} Re8 {[%emt 0:03:00]} 35. Ke2 {[%emt 0:00:00]} Nxa4 {[%emt 0:01:12]} 36. Rg1 {[%emt 0:00:00]} Nc3+ {[%emt 0:00:17]} 37. Kf3 {[%emt 0:00:00]} Qh5+ {[%emt 0:01:26]} 38. Kg2 {[%emt 0:00:00]} Rg8+ {[%emt 0:01:46]} 39. Ng3 {[%emt 0:00:00]} Qg4 {[%emt 0:02:28]} 40. Kh1 {[%emt 0:00:00]} Qf3+ {[%emt 0:00:39]} 41. Rg2 {[%emt 0:44:00]} Rg4 {[%emt 0:34:23]} 42. Nf1 {[%emt 0:00:00]} h3 {[%emt 0:00:00]} 43. Qxe5+ {[%emt 0:00:00]} Kb6 {[%emt 0:00:00]} 44. c5+ {[%emt 0:00:00]} Ka6 {[%emt 0:00:00]} 45. Ne3 {[%emt 0:00:00]} hxg2+ {[%emt 0:00:00]} 0-1

[Event "2nd Serbian League-Vojvodina 2023"]
[Site "Novi Sad"]
[Date "2023.11.04"]
[Round "3.6"]
[White "Santrac, Bozo"]
[Black "Leskovac, Nikola"]
[Result "0-1"]
[ECO "B15"]
[WhiteElo "1972"]
[BlackElo "1927"]
[Annotator "NA RC"]
[PlyCount "118"]
[EventDate "2023.10.22"]
[EventType "team-tourn"]
[EventCountry "SRB"]
[SourceTitle "playchess.com"]
[Source "ChessBase"]
[SourceQuality "1"]
[TimeControl "40/5400+30:1800+30"]

1. e4 {[%emt 0:00:07]} c6 {[%emt 0:00:53]} 2. d4 {[%emt 0:00:48]} d5 {[%emt 0:00:54]} 3. Nc3 {[%emt 0:00:15]} dxe4 {[%emt 0:01:02]} 4. Nxe4 {[%emt 0:00:13]} Nf6 {[%emt 0:02:30]} 5. Ng3 {[%emt 0:03:34]} h5 {[%emt 0:00:23]} 6. h4 {[%emt 0:03:59]} g6 {[%emt 0:02:33]} 7. Bg5 {[%emt 0:01:01]} Bg7 {[%emt 0:01:15]} 8. Qd2 {[%emt 0:00:20]} O-O {[%emt 0:01:50]} 9. Bc4 {[%emt 0:01:26]} b5 {[%emt 0:13:54]} 10. Bb3 {[%emt 0:02:24]} c5 {[%emt 0:04:46]} 11. dxc5 {[%emt 0:03:22]} Qxd2+ {[%emt 0:01:40]} 12. Bxd2 {[%emt 0:00:11]} Bb7 {[%emt 0:03:55]} 13. Nf3 {[%emt 0:00:22]} Nbd7 {[%emt 0:01:11]} 14. c6 {[%emt 0:11:42]} Bxc6 {[%emt 0:02:42]} 15. O-O {[%emt 0:01:25]} Ng4 {[%emt 0:11:45]} 16. c3 {[%emt 0:00:52]} Bxf3 {[%emt 0:03:34]} 17. gxf3 {[%emt 0:00:14]} Nge5 {[%emt 0:00:08]} 18. Kg2 {[%emt 0:00:13]} Nc5 {[%emt 0:01:07]} 19. Be3 {[%emt 0:02:22]} Ncd3 {[%emt 0:01:02]} 20. Rab1 {[%emt 0:06:16]} Nc4 {[%emt 0:02:55]} 21. Bxc4 {[%emt 0:08:15]} bxc4 {[%emt 0:01:38]} 22. Ne4 {[%emt 0:02:09]} Rfc8 {[%emt 0:07:14]} 23. Rfd1 {[%emt 0:01:15]} Be5 {[%emt 0:04:33]} 24. b3 {[%emt 0:01:51]} f5 {[%emt 0:05:06]} 25. Ng5 {[%emt 0:06:22]} f4 {[%emt 0:04:48]} 26. Bd4 {[%emt 0:00:45]} Bxd4 {[%emt 0:03:24]} 27. cxd4 {[%emt 0:01:31]} Nb4 {[%emt 0:02:20]} 28. bxc4 {[%emt 0:00:14]} Rxc4 {[%emt 0:00:12]} 29. a3 {[%emt 0:04:27]} Nd5 {[%emt 0:00:40]} 30. Rb7 {[%emt 0:00:30]} Rc2 {[%emt 0:00:55]} 31. Rdb1 {[%emt 0:06:07]} Rac8 {[%emt 0:01:15]} 32. Rb8 {[%emt 0:03:56]} Rxb8 {[%emt 0:00:42]} 33. Rxb8+ {[%emt 0:00:03]} Kg7 {[%emt 0:00:13]} 34. Rd8 {[%emt 0:02:03]} Ne3+ {[%emt 0:01:54]} 35. Kg1 {[%emt 0:00:25]} Nf5 {[%emt 0:00:55]} 36. Ne6+ {[%emt 0:00:36]} Kf6 {[%emt 0:00:22]} 37. Nxf4 {[%emt 0:01:04]} Nxh4 {[%emt 0:00:27]} 38. Rf8+ {[%emt 0:05:05]} Kg7 {[%emt 0:02:11]} 39. Ne6+ {[%emt 0:00:17]} Kh7 {[%emt 0:00:16]} 40. Rf4 {[%emt 0:11:40]} Nf5 {[%emt 0:00:58]} 41. Re4 {[%emt 0:30:54]} Ra2 {[%emt 0:32:08]} 42. d5 {[%emt 0:02:27]} Rxa3 {[%emt 0:00:23]} 43. Kg2 {[%emt 0:02:17]} a5 {[%emt 0:03:01]} 44. Rc4 {[%emt 0:02:39]} Ra2 {[%emt 0:00:35]} 45. Kg1 {[%emt 0:02:09]} a4 {[%emt 0:00:48]} 46. Rc8 {[%emt 0:01:13]} Ra1+ {[%emt 0:00:56]} 47. Kh2 {[%emt 0:00:07]} Rd1 {[%emt 0:02:46]} 48. Ra8 {[%emt 0:00:48]} Rxd5 {[%emt 0:00:29]} 49. Rxa4 {[%emt 0:00:28]} Rd2 {[%emt 0:00:19]} 50. Kg1 {[%emt 0:00:17]} Kg8 {[%emt 0:01:07]} 51. Ra8+ {[%emt 0:00:21]} Kf7 {[%emt 0:00:20]} 52. Ng5+ {[%emt 0:00:06]} Kg7 {[%emt 0:00:08]} 53. f4 {[%emt 0:00:33]} Nd4 {[%emt 0:01:02]} 54. Kg2 {[%emt 0:01:00]} Re2 {[%emt 0:00:46]} 55. Kg3 Re1 {[%emt 0:00:43]} 56. Rd8 {[%emt 0:02:34]} Ne6 {[%emt 0:00:49]} 57. Rd7 {[%emt 0:00:42]} Nxg5 {[%emt 0:00:13]} 58. fxg5 {[%emt 0:00:21]} Kf7 {[%emt 0:00:06]} 59. Rd5 {[%emt 0:00:33]} e5 {[%emt 0:00:17]} 0-1

[Event "2nd Serbian League-Vojvodina 2023"]
[Site "Novi Sad"]
[Date "2023.11.04"]
[Round "3.8"]
[White "Farkas, Sandor I"]
[Black "Jocev, Milan"]
[Result "0-1"]
[ECO "D02"]
[WhiteElo "2112"]
[BlackElo "2338"]
[Annotator "RC"]
[PlyCount "96"]
[EventDate "2023.10.22"]
[EventType "team-tourn"]
[EventCountry "SRB"]
[SourceTitle "playchess.com"]
[Source "ChessBase"]
[SourceQuality "1"]
[TimeControl "40/5400+30:1800+30"]

1. d4 {[%emt 0:00:05]} d5 {[%emt 0:00:14]} 2. Nf3 {[%emt 0:00:09]} Nf6 {[%emt 0:00:20]} 3. c3 {[%emt 0:00:10]} Bf5 {[%emt 0:02:20]} 4. Qb3 {[%emt 0:01:37]} Qc8 {[%emt 0:00:10]} 5. Bf4 {[%emt 0:00:46]} e6 {[%emt 0:01:52]} 6. c4 {[%emt 0:01:06]} dxc4 {[%emt 0:05:44]} 7. Qxc4 {[%emt 0:00:10]} Bxb1 {[%emt 0:00:20]} 8. Rxb1 {[%emt 0:00:13]} Nc6 {[%emt 0:00:20]} 9. g3 {[%emt 0:05:51]} Bb4+ {[%emt 0:04:12]} 10. Bd2 {[%emt 0:00:13]} Bxd2+ {[%emt 0:05:42]} 11. Nxd2 {[%emt 0:00:17]} O-O {[%emt 0:00:39]} 12. Bg2 {[%emt 0:00:15]} Ne7 {[%emt 0:01:48]} 13. O-O {[%emt 0:02:48]} c6 {[%emt 0:03:58]} 14. b4 {[%emt 0:03:39]} Qd7 {[%emt 0:08:52]} 15. e3 {[%emt 0:07:14]} Rac8 {[%emt 0:04:59]} 16. Qe2 {[%emt 0:01:53]} Ned5 {[%emt 0:01:17]} 17. Rfc1 {[%emt 0:00:22]} Qe7 {[%emt 0:01:39]} 18. Nc4 {[%emt 0:26:57]} Nxb4 {[%emt 0:07:18]} 19. Na5 {[%emt 0:00:50]} b6 {[%emt 0:08:50]} 20. Nxc6 {[%emt 0:01:36]} Nxc6 {[%emt 0:00:08]} 21. Bxc6 {[%emt 0:04:17]} Rc7 {[%emt 0:03:06]} 22. Bf3 {[%emt 0:03:36]} Rfc8 {[%emt 0:01:25]} 23. Rxc7 {[%emt 0:02:46]} Rxc7 {[%emt 0:03:10]} 24. Qb5 {[%emt 0:04:15]} Qa3 {[%emt 0:03:59]} 25. Qe5 {[%emt 0:02:05]} Qe7 {[%emt 0:05:34]} 26. Qb5 {[%emt 0:01:37]} h6 {[%emt 0:01:52]} 27. a4 {[%emt 0:01:15]} Ne8 {[%emt 0:03:19]} 28. Qb3 {[%emt 0:08:16]} Nd6 {[%emt 0:01:25]} 29. Rb2 {[%emt 0:07:05]} Qf6 {[%emt 0:02:04]} 30. Kg2 {[%emt 0:01:50]} Qg6 {[%emt 0:01:30]} 31. Qd1 {[%emt 0:08:17]} Qf5 {[%emt 0:01:49]} 32. d5 {[%emt 0:01:46]} e5 {[%emt 0:03:06]} 33. a5 {[%emt 0:01:01]} bxa5 {[%emt 0:02:01]} 34. Rb8+ {[%emt 0:00:40]} Kh7 {[%emt 0:02:17]} 35. Rd8 {[%emt 0:01:25]} Qf6 {[%emt 0:01:57]} 36. Qb1+ {[%emt 0:00:13]} e4 {[%emt 0:05:14]} 37. Bxe4+ {[%emt 0:00:45]} g6 {[%emt 0:00:04]} 38. Ra8 {[%emt 0:00:37]} Rb7 {[%emt 0:01:43]} 39. Qd3 {[%emt 0:00:41]} a4 {[%emt 0:01:45]} 40. Bf3 {[%emt 0:00:22]} h5 {[%emt 0:01:18]} 41. h4 {[%emt 0:30:46]} Rb3 {[%emt 0:30:53]} 42. Qa6 {[%emt 0:00:21]} a3 {[%emt 0:00:43]} 43. Qxa7 {[%emt 0:01:05]} Nf5 {[%emt 0:00:29]} 44. Qa4 {[%emt 0:00:28]} Nxe3+ {[%emt 0:00:16]} 45. Kh2 {[%emt 0:00:49]} Qxf3 {[%emt 0:00:28]} 46. Rh8+ {[%emt 0:00:27]} Kxh8 {[%emt 0:00:06]} 47. Qd4+ {[%emt 0:00:27]} Kh7 {[%emt 0:00:07]} 48. fxe3 {[%emt 0:00:08]} Rb2+ {[%emt 0:00:07]} 0-1

[Event "2nd Serbian League-Vojvodina 2023"]
[Site "Novi Sad"]
[Date "2023.11.04"]
[Round "3.9"]
[White "Stankovic, Milos M"]
[Black "Szalai, Kornel"]
[Result "1/2-1/2"]
[ECO "E81"]
[WhiteElo "2249"]
[BlackElo "2383"]
[Annotator "RC"]
[PlyCount "107"]
[EventDate "2023.10.22"]
[EventType "team-tourn"]
[EventCountry "SRB"]
[SourceTitle "playchess.com"]
[Source "ChessBase"]
[SourceQuality "1"]
[TimeControl "40/5400+30:1800+30"]

1. d4 {[%emt 0:00:02]} Nf6 {[%emt 0:00:42]} 2. c4 {[%emt 0:00:06]} g6 {[%emt 0:00:03]} 3. Nc3 {[%emt 0:00:05]} Bg7 {[%emt 0:00:02]} 4. e4 {[%emt 0:00:06]} d6 {[%emt 0:00:38]} 5. f3 {[%emt 0:00:49]} O-O {[%emt 0:00:17]} 6. Be3 {[%emt 0:00:04]} c5 {[%emt 0:00:15]} 7. dxc5 {[%emt 0:02:19]} dxc5 {[%emt 0:12:43]} 8. Qxd8 {[%emt 0:00:08]} Rxd8 {[%emt 0:00:03]} 9. Bxc5 {[%emt 0:00:07]} Nc6 {[%emt 0:00:58]} 10. Nd5 {[%emt 0:00:06]} Nd7 {[%emt 0:14:47]} 11. Bxe7 {[%emt 0:00:13]} Nxe7 {[%emt 0:02:29]} 12. Nxe7+ {[%emt 0:00:05]} Kf8 {[%emt 0:00:03]} 13. Nd5 {[%emt 0:00:08]} Bxb2 {[%emt 0:00:21]} 14. Rb1 {[%emt 0:00:33]} Bd4 {[%emt 0:10:23]} 15. Ne2 {[%emt 0:01:25]} Bc5 {[%emt 0:00:05]} 16. h4 {[%emt 0:00:58]} h5 {[%emt 0:13:13]} 17. Nef4 {[%emt 0:01:52]} Bd6 {[%emt 0:06:28]} 18. Be2 {[%emt 0:02:42]} Nc5 {[%emt 0:04:18]} 19. g3 {[%emt 1:28:12]} b6 {[%emt 0:08:38]} 20. Kf2 {[%emt 0:00:00]} Ba6 {[%emt 0:24:04]} 21. Rhc1 {[%emt 0:01:00]} Rac8 {[%emt 0:00:30]} 22. Nd3 {[%emt 0:00:30]} Nxd3+ {[%emt 0:00:00]} 23. Bxd3 {[%emt 0:00:00]} Rc5 {[%emt 0:01:00]} 24. f4 {[%emt 0:00:00]} Ra5 {[%emt 0:00:00]} 25. Rc2 {[%emt 0:01:30]} f5 {[%emt 0:00:00]} 26. Rd1 {[%emt 0:00:00]} Ra3 {[%emt 0:00:00]} 27. e5 {[%emt 0:00:00]} Bc5+ {[%emt 0:00:00]} 28. Ke2 {[%emt 0:00:00]} Bb7 {[%emt 0:00:00]} 29. Nc7 {[%emt 0:00:00]} Ke7 {[%emt 0:00:00]} 30. Nb5 {[%emt 0:00:00]} Raxd3 {[%emt 0:00:00]} 31. Rxd3 {[%emt 0:00:00]} Rxd3 {[%emt 0:00:00]} 32. Kxd3 {[%emt 0:00:00]} Be4+ {[%emt 0:00:00]} 33. Kc3 {[%emt 0:00:00]} Bxc2 {[%emt 0:00:00]} 34. Kxc2 {[%emt 0:00:00]} Bf2 {[%emt 0:00:17]} 35. Kd3 {[%emt 0:00:00]} Bxg3 {[%emt 0:01:39]} 36. Ke3 {[%emt 0:00:00]} Bxh4 {[%emt 0:00:30]} 37. Nxa7 {[%emt 0:00:00]} Ke6 {[%emt 0:01:06]} 38. Nc8 {[%emt 0:00:00]} Bd8 {[%emt 0:02:55]} 39. Na7 {[%emt 0:00:00]} Be7 {[%emt 0:00:20]} 40. Nb5 {[%emt 0:00:00]} Bc5+ {[%emt 0:00:19]} 41. Kf3 {[%emt 0:00:00]} Kd7 {[%emt 0:30:14]} 42. Nc3 {[%emt 0:00:00]} Kc6 {[%emt 0:01:14]} 43. a4 {[%emt 0:00:00]} Be7 {[%emt 0:00:29]} 44. Nd5 {[%emt 0:00:00]} Bd8 {[%emt 0:00:46]} 45. e6 {[%emt 0:00:02]} Kd6 {[%emt 0:00:03]} 46. e7 {[%emt 0:00:03]} Bxe7 {[%emt 0:00:02]} 47. Nxb6 {[%emt 0:00:08]} Kc6 {[%emt 0:01:06]} 48. Nd5 {[%emt 0:00:34]} Bd8 {[%emt 0:00:20]} 49. a5 {[%emt 0:00:11]} Bxa5 {[%emt 0:00:56]} 50. Ne7+ {[%emt 0:00:06]} Kc5 {[%emt 0:00:25]} 51. Nxg6 {[%emt 0:00:05]} Kxc4 {[%emt 0:00:34]} 52. Nh4 {[%emt 0:00:07]} Bc7 {[%emt 0:00:10]} 53. Nxf5 {[%emt 0:00:06]} Bxf4 {[%emt 0:00:24]} 54. Ke4 {[%emt 0:43:08]} 1/2-1/2

[Event "2nd Serbian League-Vojvodina 2023"]
[Site "Novi Sad"]
[Date "2023.11.04"]
[Round "3.10"]
[White "Nadj Hedjesi, Balind"]
[Black "Milekic, Daniel"]
[Result "1-0"]
[ECO "B23"]
[WhiteElo "2227"]
[BlackElo "2236"]
[Annotator "RC"]
[PlyCount "87"]
[EventDate "2023.10.22"]
[EventType "team-tourn"]
[EventCountry "SRB"]
[SourceTitle "playchess.com"]
[Source "ChessBase"]
[SourceQuality "1"]
[TimeControl "40/5400+30:1800+30"]

1. e4 {[%emt 0:00:31]} c5 {[%emt 0:00:15]} 2. Nc3 {[%emt 0:00:58]} d6 {[%emt 0:00:11]} 3. d4 {[%emt 0:00:17]} cxd4 {[%emt 0:00:24]} 4. Qxd4 {[%emt 0:00:02]} Nc6 {[%emt 0:00:30]} 5. Qd2 {[%emt 0:00:00]} g6 {[%emt 0:01:00]} 6. b3 {[%emt 0:02:00]} Bh6 {[%emt 0:01:35]} 7. f4 {[%emt 0:00:35]} f5 {[%emt 0:01:49]} 8. Bb2 {[%emt 0:01:48]} Nf6 {[%emt 0:00:31]} 9. Bd3 {[%emt 0:11:19]} Qa5 {[%emt 0:05:27]} 10. exf5 {[%emt 0:03:43]} Bxf5 {[%emt 0:00:50]} 11. Nge2 {[%emt 0:02:02]} Bxd3 {[%emt 0:04:21]} 12. Qxd3 {[%emt 0:02:34]} O-O {[%emt 0:01:25]} 13. O-O-O {[%emt 0:09:19]} Bg7 {[%emt 0:05:53]} 14. Kb1 {[%emt 0:03:47]} Rac8 {[%emt 0:01:55]} 15. a3 {[%emt 0:03:38]} Qf5 {[%emt 0:12:20]} 16. Rhe1 {[%emt 0:03:31]} Qxd3 {[%emt 0:03:30]} 17. Rxd3 {[%emt 0:00:11]} a6 {[%emt 0:03:18]} 18. h3 {[%emt 0:03:36]} Rf7 {[%emt 0:12:37]} 19. Re3 {[%emt 0:08:01]} Nh5 {[%emt 0:03:58]} 20. Nd5 {[%emt 0:05:51]} Bxb2 {[%emt 0:01:44]} 21. Kxb2 {[%emt 0:00:33]} e5 {[%emt 0:07:40]} 22. g3 {[%emt 0:09:25]} Rcf8 {[%emt 0:05:27]} 23. Rd1 {[%emt 0:02:34]} Ng7 {[%emt 0:12:19]} 24. Re4 {[%emt 0:10:36]} Ne6 {[%emt 0:06:23]} 25. Nb6 {[%emt 0:05:43]} Rd8 {[%emt 0:01:54]} 26. b4 {[%emt 0:02:36]} g5 {[%emt 0:03:15]} 27. fxe5 {[%emt 0:03:30]} dxe5 {[%emt 0:00:21]} 28. Rxd8+ {[%emt 0:00:04]} Nexd8 {[%emt 0:00:16]} 29. Nc4 {[%emt 0:00:10]} Re7 {[%emt 0:00:15]} 30. Nc3 {[%emt 0:01:32]} Nf7 {[%emt 0:00:17]} 31. Nd5 {[%emt 0:00:33]} Re6 {[%emt 0:00:24]} 32. c3 {[%emt 0:00:33]} Kg7 {[%emt 0:00:48]} 33. a4 {[%emt 0:01:45]} Nd6 {[%emt 0:01:02]} 34. Nxd6 {[%emt 0:00:12]} Rxd6 {[%emt 0:00:05]} 35. c4 {[%emt 0:00:18]} Re6 {[%emt 0:02:41]} 36. Kc3 {[%emt 0:00:38]} Kg6 {[%emt 0:00:39]} 37. g4 {[%emt 0:01:01]} h5 {[%emt 0:00:51]} 38. c5 {[%emt 0:00:18]} Nd4 {[%emt 0:00:46]} 39. Nb6 {[%emt 0:01:19]} h4 {[%emt 0:00:32]} 40. Kc4 {[%emt 0:00:32]} Nc6 {[%emt 0:00:30]} 41. b5 {[%emt 0:30:23]} axb5+ {[%emt 0:30:04]} 42. axb5 {[%emt 0:00:03]} Nd8 {[%emt 0:00:44]} 43. Nd7 {[%emt 0:01:16]} Nf7 {[%emt 0:00:05]} 44. Nf8+ {[%emt 0:00:06]} 1-0